Cogmind - Beta 15 @@@ ROGUE MODE // 2025.09.11 @ 19:15:14 Player: Godsword Result: Self-destructed Performance ------------- Evolutions (4) 2000 Regions Visited (4) 800 Robots Destroyed (12) 60 Value Destroyed (237) 237 Prototype IDs (9) 180 Alien Tech Used (0) 0 Bonus (800) 800 TOTAL SCORE: 4077 Bonus ------- Registered with UFD 300 Met Optimus in HQ 500 Cogmind --------- Core Integrity 711/850 Matter 443/500 Energy 160/160 System Corruption 8% Temperature Cool (0) Movement Rolling (125) Ox2 Location -6/Factory Parts ------- > --- POWER (1) -------- Light Fission Core > --- PROPULSION (6) --- Compact Wheel Armored Wheel > --- UTILITY (6) ------ High-capacity Storage Unit High-capacity Matter Pod Improved Terrain Scanner ECM Suite Hacking Suite A0-MCA's Component Scanner > --- WEAPON (2) ------- Mace Heavy Hammer > --- INVENTORY (20) --- Light Ion Engine Light Fission Core Flight Unit Cesium-ion Thruster Cryofiber Web Advanced Heat Sink Medium Storage Unit Advanced Signal Interpreter IFF Parser Improved Terrain Scanner Melee Analysis Suite Melee Analysis Suite Melee Analysis Suite Melee Analysis Suite Melee Analysis Suite ECM Suite Cloaking Device Remote Datajack Heavy Hammer DRS Beacon (Ready) Peak State ------------ > --- POWER ------------ Light Ion Engine > --- PROPULSION ------- Compact Wheel Compact Wheel Compact Wheel Armored Wheel Armored Wheel Armored Wheel > --- UTILITY ---------- High-capacity Storage Unit High-capacity Matter Pod Improved Terrain Scanner ECM Suite Hacking Suite A0-MCA's Component Scanner > --- WEAPON ----------- Mini Grenade Launcher Heavy Hammer > --- INVENTORY -------- Light Ion Engine Fission Core Light Fission Core Flight Unit Cryofiber Web Improved Heat Sink Medium Storage Unit Energy Well IFF Parser Improved Terrain Scanner Transmission Jammer ECM Suite Improved Hardlight Generator EM Pulse Gun Overtuned Barrage Gun Remote Datajack Mace Heavy Hammer DRS Beacon [Rating: 38] Favorites ----------- Power Light Ion Engine Engine Light Ion Engine Power Core Light Fission Core Propulsion Compact Wheel Wheel Compact Wheel Utility High-capacity Storage Unit Device Improved Terrain Scanner Storage High-capacity Storage Unit Processor A0-MCA's Component Scanner Hackware Hacking Suite Weapon Heavy Hammer Ballistic Gun Light Assault Rifle Launcher Mini Grenade Launcher Impact Weapon Heavy Hammer Build | -11 -10 -10 -9 -6 ------- Run | Yrd Mat Sub Scr Fac Slots Evolved 8 | . . . . 8 Power . | . . . . . Propulsion 4 | . . . . 4 Utility 4 | . . . . 4 Weapon . | . . . . . Parts Attached 23 | 7 1 . 4 11 Power 3 | 1 1 . . 1 Engine 2 | 1 1 . . . Core 1 | . . . . 1 Reactor . | . . . . . Propulsion 6 | 2 . . . 4 Treads . | . . . . . Leg . | . . . . . Wheel 6 | 2 . . . 4 Hover . | . . . . . Flight . | . . . . . Utility 9 | 2 . . 2 5 Device 4 | 1 . . . 3 Storage 3 | 1 . . 1 1 Processor 1 | . . . 1 . Hackware 1 | . . . . 1 Protection . | . . . . . Artifact . | . . . . . Weapon 5 | 2 . . 2 1 Energy Gun . | . . . . . Energy Cannon . | . . . . . Ballistic Gun 2 | 2 . . . . Ballistic Cannon . | . . . . . Launcher 1 | . . . 1 . Special Weapon . | . . . . . Impact Weapon 2 | . . . 1 1 Slashing Weapon . | . . . . . Piercing Weapon . | . . . . . Special Melee Weapon . | . . . . . Unidentified Prototypes . | . . . . . Parts Lost 6 | . . . . 6 Power 1 | . . . . 1 Propulsion 4 | . . . . 4 Utility . | . . . . . Weapon 1 | . . . . 1 Highest Loss Streak 3 | . . . . 3 To Critical Strikes . | . . . . . Average Backups 15 | 1 7 8 16 17 Power 1 | . 1 1 1 2 Propulsion 2 | 1 2 2 3 1 Utility 7 | . 2 3 7 9 Weapon 3 | . 1 1 3 3 Tool/Special . | . . . . . Unused Backups 29 | . . 2 2 25 Power 5 | . . . 1 4 Propulsion 4 | . . 1 1 2 Utility 15 | . . . . 15 Weapon 4 | . . 1 . 3 Tool/Special 1 | . . . . 1 Average Slot Usage (%) 95 | . 100 100 99 86 Engine 10 | . 14 14 14 4 Wheel 28 | . 28 28 28 29 Device 9 | . 14 14 7 13 Storage 13 | . 14 14 14 12 Processor 5 | . . . 6 6 Hackware 1 | . . . . 5 Ballistic Gun 6 | . 28 28 6 . Launcher 7 | . . . 10 2 Impact Weapon 8 | . . . 10 7 Peak Build Rating 38 | 9 10 10 21 38 Average Rating 21 | 5 9 9 16 34 On Entrance 10 | . 9 10 10 21 Naked Turns . | . . . . . Heaviest Build 59 | 11 11 11 48 59 Greatest Support 84 | 32 32 32 32 84 Greatest Overweight (x) 2 | . . . 1 2 Average Overweight (x) . | . . . . . Largest Inventory Capacity 20 | 8 8 8 20 20 Average Capacity 18 | 7 8 8 19 20 Most Carried 20 | 5 8 8 20 20 Average Carried 15 | 1 7 7 16 18 Final Capacity 20 | 8 8 8 20 20 Final Carried 20 | 5 8 8 20 20 Class Distribution -------------------- 76% | Mutant 20% | Scavenger-Mutant 3% | Derelict-Mutant Dominant Class ---------------- Mutant | -10/Materials Mutant | -10/Subcaves Mutant | -9/Scraptown Scavenger-Mutant | -6/Factory Resources | -11 -10 -10 -9 -6 ----------- Run | Yrd Mat Sub Scr Fac Matter Collected 644 | 261 14 49 230 90 Remotely . | . . . . . Salvage Created 329 | 188 14 . . 127 Parts 27 | 20 3 . . 4 Haulers Intercepted . | . . . . . Recyclers Shooed 1 | . . . . 1 Parts Field Recycled . | . . . . . Retrieved Matter . | . . . . . Parts Self-Destructed 3 | . . 3 . . Prevented . | . . . . . Kills | -11 -10 -10 -9 -6 ------- Run | Yrd Mat Sub Scr Fac Combat Hostiles Destroyed 2 | . . . . 2 Classes Destroyed 5 | 2 . . . 3 Builder 1 | . . . . 1 Tunneler 6 | 5 1 . . . Recycler 1 | 1 . . . . Operator 2 | . . . . 2 Specialist 2 | . . . . 2 Best Kill Streak 5 | 5 1 . . 2 Combat Bots Only 2 | . . . . 2 Max Kills in Single Turn 1 | 1 1 . . 1 Gunslinging . | . . . . . Exploded . | . . . . . Melee . | . . . . . Uniques/NPCs Destroyed . | . . . . . Combat | -11 -10 -10 -9 -6 -------- Run | Yrd Mat Sub Scr Fac Hostile Shots Fired 44 | . . . . 44 Missed 10 | . . . . 10 Hits 34 | . . . . 34 Projectile 34 | . . . . 34 Part Disruptions 4 | . . . . 4 Damage Taken 567 | . . . . 567 Core 139 | . . . . 139 Absorbed by Shields . | . . . . . Core Remaining (%) 100 | 100 . . 100 . Volleys Fired 26 | 15 7 . . 4 Largest 2 | 2 2 . . 1 Hottest 40 | 40 40 . . 30 Shots Fired 48 | 30 14 . . 4 Gun 44 | 30 14 . . . Cannon . | . . . . . Launcher 4 | . . . . 4 Special . | . . . . . Kinetic 44 | 30 14 . . . Thermal . | . . . . . Explosive 4 | . . . . 4 Electromagnetic . | . . . . . Robot Hit Streak 8 | 7 8 . . 3 Robot Miss Streak 2 | 2 1 . . 1 Penetration Max . | . . . . . Secondary Targets . | . . . . . Shots Hit Robots 42 | 18 9 . . 15 Core Hits 14 | 10 2 . . 2 Critical Kills . | . . . . . Critical Parts Destroyed 2 | 1 . . . 1 Critical Strikes 2 | 1 . . . 1 Destroy 1 | 1 . . . . Smash 1 | . . . . 1 Melee Attacks 24 | . . . . 24 Impact 24 | . . . . 24 Slashing . | . . . . . Piercing . | . . . . . Sneak Attacks 4 | . . . . 4 Combat Hostiles . | . . . . . Follow-up Attacks . | . . . . . Damage Inflicted 1226 | 152 75 . . 999 Guns 227 | 152 75 . . . Cannons . | . . . . . Explosions 254 | . . . . 254 Melee 745 | . . . . 745 Ramming . | . . . . . Kinetic 227 | 152 75 . . . Thermal . | . . . . . Explosive 254 | . . . . 254 Electromagnetic . | . . . . . Impact 745 | . . . . 745 Slashing . | . . . . . Piercing . | . . . . . Highest Corruption 8 | . . . . 8 Average Corruption 6 | . . . . 6 Corruption Purged . | . . . . . Corruption Blocked . | . . . . . Effects 13 | . . . . 13 Message Errors 5 | . . . . 5 Matter Fused 3 | . . . . 3 Heat Flow Errors 2 | . . . . 2 Energy Discharges 3 | . . . . 3 Overload Shots . | . . . . . Overflow Damage 315 | . . . . 315 Projectiles . | . . . . . Explosions 28 | . . . . 28 Melee 287 | . . . . 287 Knockbacks 4 | . . . . 4 Impact 4 | . . . . 4 Kinetic . | . . . . . Secondary . | . . . . . Self-Inflicted Damage 78 | . . . . 78 Shots 3 | . . . . 3 Rammed . | . . . . . Targets Rammed . | . . . . . Kicked . | . . . . . Crushed . | . . . . . Highest Temperature 83 | . . . . 83 Average Temperature 49 | . . . . 49 Received Heat Transfer . | . . . . . Siege Activations . | . . . . . Martial Activations . | . . . . . Shielding Activations . | . . . . . Robots Disrupted . | . . . . . Combat Hostiles . | . . . . . Robots Corrupted 2 | . . . . 2 Combat Hostiles 2 | . . . . 2 Parts Fried 7 | . . . . 7 Impact Corruptions 9 | . . . . 9 Robots Melted . | . . . . . Combat Hostiles . | . . . . . Parts Melted . | . . . . . Heat Transferred . | . . . . . Parts Sabotaged . | . . . . . Parts Stolen . | . . . . . Parts Stripped . | . . . . . Power Chain Reactions . | . . . . . Alert | -11 -10 -10 -9 -6 ------- Run | Yrd Mat Sub Scr Fac Maximum Alert Level . | . . . . . Low Security (%) 100 | 100 100 . . 100 Level 1 . | . . . . . Level 2 . | . . . . . Level 3 . | . . . . . Level 4 . | . . . . . Level 5 . | . . . . . High Security . | . . . . . Max Security . | . . . . . Peak Influence 30 | 15 5 . . 30 Initial 3 | . 3 . . . Average 2 | 4 1 . . 1 Influence Increases 168 | 30 5 . . 133 Destroy 0b10 Robot/C 40 | . . . . 40 Destroy 0b10 Robot/NC 50 | 30 5 . . 15 Destroy Leader 10 | . . . . 10 Successful Hack 10 | . . . . 10 Destroy Structure 28 | . . . . 28 Partial Spotted 30 | . . . . 30 Influence Decreases 168 | 25 5 5 . 133 Entered New Map 5 | . 2 3 . . Time Decay 138 | 25 3 2 . 108 Lost Part 20 | . . . . 20 Purge Threat 5 | . . . . 5 Squads Dispatched 7 | . . . . 7 Investigation 2 | . . . . 2 Extermination 1 | . . . . 1 Reinforcement 4 | . . . . 4 Assault . | . . . . . Garrison . | . . . . . Intercept . | . . . . . Searches Triggered . | . . . . . Construction Impeded . | . . . . . Haulers Reinforced . | . . . . . Active Scanning Responses . | . . . . . Cargo Convoy Interrupts . | . . . . . Stealth | -11 -10 -10 -9 -6 --------- Run | Yrd Mat Sub Scr Fac Distress Signals 1 | . . . . 1 Communications Jammed . | . . . . . Distress Signals . | . . . . . Times Spotted 10 | . . . . 10 Peak Tracking Total 5 | . . . . 5 Tactical Retreats . | . . . . . Traps | -11 -10 -10 -9 -6 ------- Run | Yrd Mat Sub Scr Fac Traps Triggered 1 | . . . . 1 Indirectly . | . . . . . Trap Hack Attempts . | . . . . . Triggered . | . . . . . Disarmed . | . . . . . Reprogrammed . | . . . . . Reused . | . . . . . Traps Extracted . | . . . . . Installed . | . . . . . Triggered . | . . . . . Machines | -11 -10 -10 -9 -6 ---------- Run | Yrd Mat Sub Scr Fac Machines Disabled . | . . . . . Max in Single Turn . | . . . . . Machines Repaired . | . . . . . Machines Dismantled . | . . . . . Machines Sabotaged . | . . . . . Overloaded Fab Kills . | . . . . . Hacking | -11 -10 -10 -9 -6 --------- Run | Yrd Mat Sub Scr Fac Machines Accessed 6 | . . . 2 4 Terminals 2 | . . . . 2 Fabricators . | . . . . . Repair Stations . | . . . . . Recycling Units 1 | . . . . 1 Scanalyzers 1 | . . . . 1 Garrison Access . | . . . . . Total Hacks 18 | . . . 6 12 Successful 10 | . . . 6 4 Failed 8 | . . . . 8 Catastrophic 1 | . . . . 1 Database Lockouts . | . . . . . Manual . | . . . . . Terminals 5 | . . . . 5 Fabricators . | . . . . . Repair Stations . | . . . . . Recycling Units 4 | . . . . 4 Scanalyzers 3 | . . . . 3 Garrison Access . | . . . . . Terminal Hacks 8 | . . . 6 2 Record 6 | . . . 6 . Unreport Threat 1 | . . . . 1 Zone Layout 1 | . . . . 1 Fabricator Hacks . | . . . . . Repair Station Hacks . | . . . . . Recycling Unit Hacks 1 | . . . . 1 Retrieve Components 1 | . . . . 1 Scanalyzer 1 | . . . . 1 Insert Component 1 | . . . . 1 Garrison Access Hacks . | . . . . . Unauthorized Hacks . | . . . . . Terminals . | . . . . . Fabricators . | . . . . . Repair Stations . | . . . . . Recycling Units . | . . . . . Scanalyzers . | . . . . . Garrison Access . | . . . . . Data Cores Recovered 1 | . . . . 1 Used 1 | . . . . 1 Hacking Detections 4 | . . . . 4 Full Trace Events 2 | . . . . 2 Feedback Events . | . . . . . Feedback Blocked . | . . . . . Robot Schematics Acquired . | . . . . . Robots Built . | . . . . . Authchips . | . . . . . Time . | . . . . . Total Robot Build Rating . | . . . . . Part Schematics Acquired . | . . . . . Parts Built . | . . . . . Authchips . | . . . . . Time . | . . . . . Total Part Build Rating . | . . . . . Parts Repaired . | . . . . . Time . | . . . . . Parts Recycled . | . . . . . Recycled Matter . | . . . . . Retrieved Matter . | . . . . . Retrieved Components 3 | . . . . 3 Parts Scanalyzed 1 | . . . . 1 Part Schematics Acquired . | . . . . . Parts Damaged 1 | . . . . 1 Bothacking | -11 -10 -10 -9 -6 ------------ Run | Yrd Mat Sub Scr Fac Used RIF Installer . | . . . . . Robots Hacked . | . . . . . Non-combat . | . . . . . Combat . | . . . . . Robot Hacks Applied . | . . . . . Relay Couplers Released . | . . . . . Fabnet Peak Effective % . | . . . . . Robots Rewired . | . . . . . Allies Hacked . | . . . . . Hacks Repelled . | . . . . . Allies | -11 -10 -10 -9 -6 -------- Run | Yrd Mat Sub Scr Fac Total Allies . | . . . . . Largest Group . | . . . . . Highest-Rated Group . | . . . . . Highest-Rated Ally . | . . . . . Total Orders . | . . . . . Ally Attacks . | . . . . . Total Damage . | . . . . . Kills . | . . . . . Allies Corrupted . | . . . . . Allies Melted . | . . . . . Intel | -11 -10 -10 -9 -6 ------- Run | Yrd Mat Sub Scr Fac Active Infowar (turns) 1734 | 23 56 111 744 800 Terrain 1733 | 23 56 111 744 799 ECM 318 | . . . . 318 Robot Analysis Total . | . . . . . Derelict Logs Recovered 2 | . . . 2 . Drone Launches . | . . . . . Drone Recoveries . | . . . . . Exploration | -11 -10 -10 -9 -6 ------------- Run | Yrd Mat Sub Scr Fac Turns Passed 2518 | 99 56 111 1448 804 Spaces Moved 2081 | 47 34 108 1255 637 Core 4 | 4 . . . . Treads . | . . . . . Legs . | . . . . . Wheels 2077 | 43 34 108 1255 637 Hover . | . . . . . Flight . | . . . . . Fastest Speed 50 | 50 100 100 100 95 Average Speed 109 | 95 100 100 113 104 Slowest Speed 125 | 100 100 100 115 125 Overloaded Moves . | . . . . . Propulsion Burnouts . | . . . . . Robots Hopped . | . . . . . Potential Cave-ins . | . . . . . Cave-ins Triggered . | . . . . . Exploration Rate (%) 25 | 3 13 6 84 20 Regions Visited 4 Branch Regions 2 Pre-discovered Areas . | . . . . . Known Exits Taken . | . . . . . Unknown Exits Taken 4 | 1 1 1 1 . Scrap Searched 9 | . . 4 5 . Spaces Dug 8 | . . . . 8 Terrain Destroyed 36 | . . . . 36 Melee 8 | . . . . 8 Projectile . | . . . . . AOE 28 | . . . . 28 Terrain Rammed . | . . . . . Walls Destroyed . | . . . . . Machines Disabled . | . . . . . Actions | -11 -10 -10 -9 -6 --------- Run | Yrd Mat Sub Scr Fac Total 2238 | 73 45 111 1280 729 Wait 27 | . . . . 27 Move 2077 | 46 33 107 1254 637 Hop . | . . . . . Pick Up 43 | 5 3 2 15 18 Fast Attach 10 | 7 . . 3 . Attach 10 | . . . . 10 Detach 1 | . . . 1 . Swap 3 | . 1 . 1 1 Drop 17 | . 1 2 6 8 Fire 26 | 15 7 . . 4 Melee 24 | . . . . 24 Ram . | . . . . . Kick . | . . . . . Crush . | . . . . . Escape Stasis . | . . . . . Rewire . | . . . . . Trap . | . . . . . Miscellaneous . | . . . . . Route ------- -11/Scrapyard -10/Materials (discovered 2 exits: [*Min] / [*Sub]) -10/Subcaves -9/Scraptown (discovered 2 exits: *Fac x2) -6/Factory History --------- Turn | Location | Event 2 | -11/Scrapyard | Met Revision 17 17 | -11/Scrapyard | Discovered new exit (range 16) 100 | -11/Scrapyard | Entered Materials 101 | -10/Materials | Met a group of wandering Federalists 115 | -10/Materials | Discovered new exit (range 14) 128 | -10/Materials | Discovered new exit (range 8) 156 | -10/Materials | Entered Subcaves 156 | -10/Subcaves | Accompanied by 2 allies 157 | -10/Subcaves | Continued accompanying wandering Federalists (2) 157 | -10/Subcaves | Approached by a straggling Scientist 245 | -10/Subcaves | Scientist uncovered a shortcut to Scraptown 267 | -10/Subcaves | Entered Scraptown 303 | -9/Scraptown | Build established: Mutant 708 | -9/Scraptown | Visited UFD Registry 708 | -9/Scraptown | Registered with UFD as "Roughforce" 724 | -9/Scraptown | Visited SPCMW 777 | -9/Scraptown | Scanned Subdweller tech in exchange for log data 781 | -9/Scraptown | Learned Research stockpile data 834 | -9/Scraptown | Guru changed UFD alias to "Gearsink" 856 | -9/Scraptown | Discovered new exit (range 9) 962 | -9/Scraptown | Visited Chapter 10 999 | -9/Scraptown | Visited A0-MCA Data Center 1006 | -9/Scraptown | Given a B rating by A0-MCA 1012 | -9/Scraptown | Found A0-MCA's Component Scanner 1266 | -9/Scraptown | Visited Observation Area 1395 | -9/Scraptown | Visited Science Guys 1430 | -9/Scraptown | Visited Abandonware Association 1451 | -9/Scraptown | Learned abandonware demo "MELTYB.EXE" 1451 | -9/Scraptown | Learned abandonware demo "REBOOT5.EXE" 1471 | -9/Scraptown | Visited Derelict Rescue Squad 1479 | -9/Scraptown | Found DRS Beacon 1535 | -9/Scraptown | Visited Modified Component R&D 1631 | -9/Scraptown | Met Optimus 1631 | -9/Scraptown | Accepted into 0bPrime 1713 | -9/Scraptown | Discovered new exit (range 3) 1715 | -9/Scraptown | Entered Factory 1715 | -6/Factory | Evolved 8 slots: Propulsion x4, Utility x4 2077 | -6/Factory | Lost 3 parts (2n1w) 2091 | -6/Factory | Build established: Scavenger-Mutant 2519 | -6/Factory | Self-destructed Last Messages --------------- 02384_ System corrupted: Matter fused (-5). 02394_ K-01 Serf cleans the Power Conduit. 02423_ System corrupted: Heat flow error (+112). 02449_ SQEKMB3MQARZXATVY8=GKHPN7U1RJQMRWYBA5DF 02466_ Connecting with Scanalyzer... >>Insert(Cesium-ion Thruster) Scanning Cesium-ion Thruster... Ready to analyze. 02474_ System corrupted: Heat flow error (+103). 02514_ O-24 Administrator sends out distress signal. 02514_ O-24 Administrator: "IFF HANDSHAKE FAILED. SECURING TERMINAL." 02516_ Com. Wheel destroyed. 02516_ O-24 Administrator uses terminal to summon reinforcements. 02516_ ALERT: Hostiles spotted, dispatching reinforcements to Terminal F019. 02516_ O-24 Administrator locks terminal. 02516_ K-01 Serf cleans the Terminal. Map ----- +----------------------------------------------------+ | ?????????????????????????????????????????????????? | | ?????????????????????????????????????????????????? | | ?????????????????????????????????????????????????? | | ?????????????????????????????????????????????????? | | ?????????????????????????????????????????????????? | | ?????????????????????????????????????????????????? | | ?????????????????????????????????????????????????? | | ?????????????????????????????????????????????????? | | ?????????????????????????????????????????????????? | | ?????????????????????????????????????????????????? | | ??????????????????????? ???????????????????????? | | ????????????????????? ???????????????????????? | | ????????????????????# ???????????????????????? | | ????????????????????# sss##?????????????????????? | | ????????????????????# ?????????????????????? | | ??? #??????????????# ?????????????????????? | | ??? #???#??????????# ???#?????????????????? | | ??? #??????????????# ????????????????????? | | ??" #????????????###k ?????????????????????? | | ??" #????????????#"" ?????????????????????? | | """ #?????????????To ?????????????????????? | | """ #?????????????## ??????????????????????? | | """ #?#????#???????# #????#+#???????????????? | | """ #??????????????# #?? #???????????????? | | #??????????????# # #???????????????? | | +??????????????# @/ #???????????????? | | #??????????????# # """" #???????????????? | | #??????????????# #??""" ????????????????? | | #??????????????# #????"??#??????????????? | | #???????????#??# #??????????????????????? | | ################ #??????????????????????? | | k #??????????????????????? | | ######### #??????????????????????? | | #???????# #??????????????????????? | | #?????#?# k#??????????????????????? | | #???????# k#??????????????????????? | | #########+###???????# #??????????????????????? | | ????????????????????# #??????????????????????? | | ?????????????? ?????# p #??????????????????????? | | ????????????????????# /??????????????????????? | | ???????? ??????????## # ?????? ??????????????? | | ????????????????????# # ????????????????????? | | ??????????????????#?# #? ????????????????????? | | ????????????????????# #? ???????????????????? | | ????????????????????? #?? ??????????????????? | | ????????????????????? #??????????????????????? | | ????????????????????? ???????????????????????? | | ????????????????????? ?????????????????????????? | | ?????????????????????????????????????????????????? | | ?????????????????????????????????????????????????? | +----------------------------------------------------+ Best States ------------- Heat Dissipation 37 Energy Generation 18 Energy Capacity 160 Matter Stores 463 Matter Capacity 500 Sight Range 16 Terrain Scan Range 16 Terrain Scan Density 10 ECM Strength 1 Evasion (%) 41 Offensive Hacking 10 Item Schematics ----------------- None Robot Schematics ------------------ None Fabricated ------------ Nothing Repaired ---------- Nothing Alien Tech Used ----------------- None Achievements -------------- None Challenges ------------ None Game ------ Seed painworld Manual? 1 Play Time 00:18:17 Cumulative 20.9 hours Start 2025.09.11 @ 18:57:32 End 2025.09.11 @ 19:15:14 Sessions 1 Manual Loads 0 Difficulty Rogue Special Mode None Game No. 62 Rogue 62 Adventurer 0 Explorer 0 Win Type - Total 0 Types 0/0/0/0/0/0/0/0/0/0 Lore% 26 Gallery% 24 Achievement% 28 Wizard Run 0 Options --------- Layout 2 ASCII 0 Keyboard 0 Movement Mouse Keybinds 0 Fullscreen 2 Font 24/Smallcaps Map View 50x44 Zoom Use 0% Tactical HUD 1 Map Filters NONE Filters NONE Steam 1 RUN: ac703a71-551f-4078-82f2-5fb3011eaef7